bitfinex-derivatives/quotes_ETHF0:USTF0_20240915
["timestamp","ask_amount","ask_price","bid_price","bid_amount"]
[1726386027039,4.3978,2422.6,2422.5,0.49351127]
[1726386027542,4.3978,2422.6,2422.4,0.3931]
[1726386027948,4.3978,2422.6,2422.5,0.49350431]
[1726386028149,4.3978,2422.6,2422.5,0.95823895]
[1726386028448,4.3978,2422.6,2422.4,0.8058]
[1726386028747,2.70722332,2422.5,2422.4,0.3931]
[1726386028948,2.70722332,2422.5,2422.4,1.35136092]
[1726386029152,2.70705197,2422.5,2422.4,1.35136092]
[1726386031446,2.70705197,2422.5,2422.4,1.35091342]
[1726386033655,4.81047,2422.6,2422.4,0.3931]
[1726386034049,3.2078,2422.5,2422.4,0.3931]
[1726386034351,6.32623493,2422.5,2422.4,0.3931]
[1726386035548,3.11843493,2422.5,2422.4,0.3931]
[1726386035848,6.32623493,2422.5,2422.4,0.3931]
[1726386036054,3.11843493,2422.5,2422.4,0.3931]
[1726386036353,6.32623493,2422.5,2422.4,0.3931]
[1726386036544,0.4121,2422.5,2422.4,0.3931]
[1726386036746,3.11830627,2422.5,2422.4,0.3931]
[1726386037053,3.6199,2422.5,2422.4,0.3931]
[1726386037353,6.32606379,2422.5,2422.4,0.3931]
[1726386037546,0.4121,2422.5,2422.4,0.3931]
[1726386037747,6.3260637,2422.5,2422.4,0.3931]
[1726386037953,3.6199,2422.5,2422.4,0.3931]
[1726386038155,6.32606086,2422.5,2422.4,0.3931]
[1726386038352,5.91396086,2422.5,2422.4,0.3931]
[1726386038759,5.91396086,2422.5,2422.4,1.35107476]
[1726386039647,5.91396086,2422.5,2422.4,0.88646643]
[1726386039852,5.91396086,2422.5,2422.4,1.35108817]
[1726386040254,5.91396086,2422.5,2422.4,0.88646643]
[1726386041458,5.91396086,2422.5,2422.4,0.3931]
[1726386041753,5.91396086,2422.5,2422.4,0.88646119]
[1726386041953,5.91396086,2422.5,2422.4,0.88643885]
[1726386042355,5.91396086,2422.5,2422.4,0.3931]
[1726386042553,5.91396086,2422.5,2422.4,0.88645328]
[1726386043251,5.91396086,2422.5,2422.4,0.3931]
[1726386048360,6.32665086,2422.5,2422.4,0.3931]
[1726386048560,5.91396086,2422.5,2422.4,0.3931]
[1726386053071,5.91396086,2422.5,2422.4,0.88645272]
[1726386053568,6.32665086,2422.5,2422.4,0.49335272]
[1726386054273,6.32665086,2422.5,2422.4,0.49335613]
[1726386055076,0.41271,2422.4,2422.2,0.3991]
[1726386055376,3.35486945,2422.3,2422.2,0.3991]
[1726386055574,3.35486945,2422.3,2422.2,1.3570962]
[1726386056267,1.19,2422.3,2422.2,1.3570962]
[1726386058171,1.19,2422.3,2422.2,0.89247773]
[1726386058479,1.19,2422.3,2422.2,1.35710933]
[1726386059380,1.19,2422.3,2422.2,0.3991]
[1726386059679,1.19,2422.3,2422.2,1.35713135]
[1726386060770,1.60272,2422.3,2422.2,0.95803135]
[1726386060963,2.39302,2422.3,2422.2,0.95803135]
[1726386061372,2.39302,2422.3,2421.9,2.25596898]
[1726386061373,0.41274,2422.2,2421.9,1.1725]
[1726386061584,6.5634506,2422.0,2421.9,1.1725]
[1726386061881,4.3978,2422.0,2421.9,1.6660494]
[1726386062176,4.3978,2422.0,2421.9,1.1725]
[1726386062370,4.3978,2422.0,2421.9,0.87718812]
[1726386062371,4.81057,2422.0,2421.9,0.87718812]
[1726386062572,4.81057,2422.0,2421.9,1.34199134]
[1726386062778,4.81057,2422.0,2421.9,1.31317098]
[1726386063084,4.81057,2422.0,2421.9,0.95836892]
[1726386063380,4.81057,2422.0,2421.9,0.9295824]
[1726386063605,4.81057,2422.0,2421.9,0.46476776]
[1726386066376,7.51405713,2422.0,2421.9,0.46476776]
[1726386068587,0.4128,2421.9,2421.6,0.096]
[1726386068876,2.81146686,2421.7,2421.5,0.766]
[1726386069270,1.08079436,2421.6,2421.5,0.766]
[1726386069472,1.08079436,2421.6,2421.5,1.72457822]
[1726386069682,1.08079436,2421.6,2421.5,5.85417822]
[1726386070189,1.08079436,2421.6,2421.5,4.8956]
[1726386073981,1.08079436,2421.6,2421.5,0.766]
[1726386079490,1.08079436,2421.6,2421.5,5.30846]
[1726386079686,1.08079436,2421.7,2421.6,0.41284]
[1726386079876,1.08079436,2421.8,2421.7,0.41282]
[1726386080078,1.08079436,2422.0,2421.8,0.41281]
[1726386080383,1.08079436,2422.0,2421.9,0.7736]
[1726386081378,1.08079436,2422.0,2421.9,1.18639]
[1726386081788,1.08079436,2422.0,2421.9,0.7736]
[1726386082083,9.33001686,2422.2,2421.9,1.18638]
[1726386082084,1.08079436,2422.1,2421.9,1.18638]
[1726386082286,1.08079436,2422.1,2422.0,0.41277]
[1726386083690,1.08079436,2422.1,2421.9,1.18638]
[1726386084588,1.08079436,2422.1,2422.0,0.41277]
[1726386088901,1.08079436,2422.1,2422.0,1.60277]
[1726386090492,1.08079436,2422.1,2422.0,5.73157]
[1726386094296,1.08079436,2422.1,2422.0,4.54157]
[1726386104501,1.08079436,2422.1,2422.0,4.94367]
[1726386109208,1.08079436,2422.1,2422.0,0.81487]
[1726386110808,1.08079436,2422.1,2422.0,1.30821702]
[1726386111204,1.08079436,2422.1,2422.0,1.7727922]
[1726386113217,1.62146686,2422.1,2422.0,1.7727922]
[1726386117010,1.62146686,2422.1,2422.0,1.77279192]
[1726386120717,1.62146686,2422.1,2422.0,1.7727965]
[1726386121215,2.16195581,2422.2,2422.1,0.41276]
[1726386121520,2.16195581,2422.2,2422.1,1.3706865]
[1726386123320,5.91128713,2422.3,2422.1,1.3706865]
[1726386123516,5.91128713,2422.3,2422.2,0.4933516]
[1726386124323,3.2078,2422.3,2422.2,0.4933516]
[1726386125124,5.91478683,2422.3,2422.2,0.95793923]
[1726386125430,3.2078,2422.3,2422.2,0.95793923]
[1726386126640,3.2078,2422.3,2422.2,0.46458763]
[1726386126923,3.2078,2422.3,2422.2,0.49333862]
[1726386127124,3.2078,2422.3,2422.2,0.46457418]
[1726386127428,3.2078,2422.3,2422.2,0.9579119]
[1726386127731,3.2078,2422.3,2422.2,1.42248524]
[1726386129132,3.2078,2422.3,2422.2,0.95791106]
[1726386130132,3.2078,2422.3,2422.2,0.46457334]
[1726386130331,3.2078,2422.3,2422.2,0.88743815]
[1726386130634,3.2078,2422.3,2422.2,1.35201331]
[1726386133636,3.2078,2422.3,2422.2,1.35201294]
[1726386134524,3.2078,2422.3,2422.2,2.09532725]
[1726386134726,3.2078,2422.3,2422.2,1.35201294]
[1726386137231,3.2078,2422.3,2422.2,1.35201111]
[1726386137533,3.2078,2422.3,2422.2,0.3941]
[1726386137737,3.2078,2422.3,2422.2,0.88743074]
[1726386138122,3.2078,2422.3,2422.2,1.81656937]
[1726386138731,3.2078,2422.3,2422.2,1.3519996]
[1726386139035,3.2078,2422.3,2422.2,1.81657081]
[1726386139237,3.2078,2422.3,2422.2,1.35200195]
[1726386139535,3.62052,2422.3,2422.2,0.95790195]
[1726386140631,3.62052,2422.3,2422.2,0.49333074]
[1726386140937,3.62052,2422.3,2422.2,0.95792378]
[1726386141335,7.74852,2422.3,2422.2,0.95792378]
[1726386141533,7.74852,2422.3,2421.8,2.70867245]
[1726386141534,20.31668688,2422.3,2421.8,2.70867245]
[1726386141734,1.19,2421.9,2421.7,1.08346898]
[1726386141932,0.4008,2421.8,2421.7,1.49628898]
[1726386142132,0.4008,2421.8,2421.7,3.19835172]
[1726386142331,0.4008,2421.8,2421.7,1.37120685]
[1726386142332,3.10905181,2421.8,2421.7,1.37120685]
[1726386142533,3.10905181,2421.8,2421.7,2.11486374]
[1726386142534,2.70825181,2421.8,2421.7,2.11486374]
[1726386142825,2.70825181,2421.8,2421.7,1.37120685]
[1726386143226,2.70825181,2421.9,2421.7,1.37120685]
[1726386143428,2.70825181,2421.9,2421.8,1.33438685]
[1726386143632,2.70825181,2421.9,2421.8,1.71328685]
[1726386144129,2.70825181,2421.9,2421.8,1.2484888]
[1726386144327,2.70825181,2421.9,2421.8,1.71327102]
[1726386144528,2.70825181,2421.9,2421.8,1.2484888]
[1726386144725,2.70825181,2421.9,2421.8,1.71326784]
[1726386145336,2.70825181,2421.9,2421.8,0.7549]
[1726386145536,2.16515362,2421.9,2421.8,11.13757618]
[1726386145727,2.16515362,2421.9,2421.8,7.47353891]
[1726386145930,2.16515362,2421.9,2421.8,6.28353891]
[1726386146930,2.16515362,2421.9,2421.8,6.69634891]
[1726386147729,2.16515362,2421.9,2421.8,6.23155022]
[1726386148130,2.16515362,2421.9,2421.8,6.69628491]
[1726386149034,2.16515362,2421.9,2421.8,6.2027569]
[1726386149232,2.16515362,2421.9,2421.8,6.69628468]
[1726386151243,2.16515362,2421.9,2421.8,6.23154588]
[1726386151544,2.16515362,2421.9,2421.8,6.69628194]
[1726386153445,5.37295362,2422.0,2421.8,6.69628194]
[1726386153645,5.37214515,2422.0,2421.9,0.88761901]
[1726386153838,5.37214515,2422.0,2421.9,1.35233206]
[1726386154244,5.37214515,2422.0,2421.9,0.95823206]
[1726386154436,5.37214515,2422.0,2421.8,0.7549]
[1726386154437,3.2078,2422.0,2421.8,0.7549]
[1726386154642,2.16436904,2421.9,2421.8,1.56181]
[1726386154844,2.16436904,2421.9,2421.8,2.0553315]
[1726386155042,2.16436904,2421.9,2421.8,1.6425215]
[1726386155246,2.16436904,2421.9,2421.8,2.10728899]
[1726386155448,2.16436904,2421.9,2421.8,2.52009899]
[1726386156642,2.16436904,2421.9,2421.8,2.02655979]
[1726386156846,2.16436904,2421.9,2421.8,2.52010685]
[1726386157448,2.16436904,2421.9,2421.8,2.10729685]
[1726386157946,2.16436904,2421.9,2421.8,2.52010685]
[1726386158142,2.16436904,2421.9,2421.8,2.05534036]
[1726386158743,2.16436904,2421.9,2421.8,1.56181]
[1726386159053,2.16436904,2421.9,2421.8,2.05535225]
[1726386159247,2.16436904,2421.9,2421.8,2.52009273]
[1726386159543,2.16436904,2421.9,2421.8,2.52008024]
[1726386159751,2.16436904,2421.9,2421.8,2.05533976]
[1726386160543,2.16436904,2421.9,2421.8,2.52007701]
[1726386160743,2.16436904,2421.9,2421.8,2.52008477]
[1726386162255,4.31101181,2422.1,2421.8,2.52008477]
[1726386162256,2.16436904,2422.0,2421.8,2.52008477]
[1726386162455,2.16436904,2422.0,2421.8,1.56181]
[1726386162655,2.16436904,2422.0,2421.9,0.41279]
[1726386162857,2.16436904,2422.0,2421.9,0.90629031]
[1726386163052,2.16436904,2422.0,2421.9,1.37100271]
[1726386164256,2.16436904,2422.0,2421.9,1.37100844]
[1726386164459,2.16436904,2422.0,2421.9,0.90629031]
[1726386164649,2.16436904,2422.0,2421.9,0.90629962]
[1726386165164,2.16436904,2422.0,2421.9,0.41279]
[1726386165457,2.16436904,2422.0,2421.9,0.90629883]
[1726386166153,2.16436904,2422.0,2421.9,1.37101935]
[1726386166555,2.16436904,2422.0,2421.9,0.90629883]
[1726386166755,2.16436904,2422.1,2422.0,0.41277]
[1726386166952,2.16436904,2422.1,2422.0,1.37094878]
[1726386168654,2.16436904,2422.1,2422.0,1.37085733]
[1726386168858,2.16436904,2422.1,2422.0,0.87743995]
[1726386169060,2.16436904,2422.1,2422.0,1.83550043]
[1726386169252,2.16436904,2422.1,2422.0,1.37083048]
[1726386169454,2.16436904,2422.1,2422.0,1.83547372]
[1726386170358,2.16436904,2422.1,2422.0,1.37082856]
[1726386172465,2.16436904,2422.1,2422.0,1.37087037]
[1726386172855,2.70825181,2422.2,2422.0,1.37087037]
[1726386173154,2.16434648,2422.1,2422.0,0.41277]
[1726386173464,2.16434648,2422.1,2422.0,1.37089624]
[1726386173663,2.70825181,2422.2,2422.0,1.37089624]
[1726386173868,2.70825181,2422.2,2422.0,0.41277]
[1726386174762,2.70825181,2422.2,2422.1,0.3749]
[1726386185165,4.7804,2422.3,2422.1,0.3749]
[1726386185966,5.19313,2422.3,2421.8,1.85356898]
[1726386186164,2.16542422,2422.0,2421.9,1.31241307]
[1726386186667,2.55302422,2422.0,2421.9,1.31241307]
[1726386186864,2.55302422,2422.0,2421.9,1.77724626]
[1726386187859,2.55302422,2422.0,2421.9,1.31241307]
[1726386188066,2.55302422,2422.0,2421.9,1.77724565]
[1726386188370,2.55302422,2422.0,2421.9,2.5209781]
[1726386189168,0.3876,2422.0,2421.9,2.5209781]
[1726386189369,0.3876,2422.0,2421.9,0.81879]
[1726386189570,0.3876,2422.0,2421.9,1.31241309]
[1726386190069,0.3876,2422.0,2421.9,2.52097814]
[1726386195971,3.09438028,2422.0,2421.9,2.52097814]
[1726386196564,3.09438028,2422.0,2421.9,2.02735505]
[1726386196768,3.09438028,2422.0,2421.9,1.31242326]
[1726386197069,3.09438028,2422.0,2421.9,1.77726468]
[1726386197276,3.09438028,2422.0,2421.9,2.52101095]
[1726386198471,2.70678028,2422.0,2421.9,2.52101095]
[1726386199070,2.70678028,2422.0,2421.9,1.31242326]
[1726386199270,2.70678028,2422.0,2421.9,1.31242365]
[1726386199775,2.70678028,2422.0,2421.9,2.52101015]
[1726386200177,2.70678028,2422.0,2421.9,2.0273765]
[1726386200370,2.70678028,2422.0,2421.9,1.31242085]
[1726386200775,2.70678028,2422.0,2421.9,2.52100238]
[1726386200975,2.70678028,2422.0,2421.9,3.72958435]
[1726386202278,2.70678028,2422.0,2421.9,4.81305333]
[1726386203789,2.70678028,2422.0,2421.9,4.31942207]
[1726386203969,2.70678028,2422.0,2421.9,3.1108401]
[1726386204176,2.70678028,2422.0,2421.9,4.81305741]
[1726386204573,2.70678028,2422.0,2421.9,6.02164081]
[1726386207587,2.70678028,2422.0,2421.9,4.31942497]
[1726386207786,2.70678028,2422.0,2421.9,5.27790414]
[1726386208284,2.70678028,2422.0,2421.9,6.0216528]
[1726386209678,2.70678028,2422.0,2421.9,3.60448681]
[1726386211189,2.70678028,2422.0,2421.9,4.08232569]
[1726386211577,2.70678028,2422.0,2421.9,3.11085055]
[1726386211778,2.70678028,2422.0,2421.9,2.39589608]
[1726386212094,2.70678028,2422.0,2421.9,2.86073945]
[1726386212284,2.70678028,2422.0,2421.9,3.60448885]
[1726386214680,2.70678028,2422.0,2421.9,2.36710235]
[1726386214879,2.70678028,2422.0,2421.9,1.90225898]
[1726386215088,2.70678028,2422.0,2421.9,2.86074019]
[1726386215391,2.70678028,2422.0,2421.9,4.08232944]
[1726386215579,2.70678028,2422.0,2421.9,3.60449011]
[1726386216492,2.70678028,2422.0,2421.9,4.08232826]
[1726386216694,2.70678028,2422.0,2421.9,3.60449011]
[1726386217189,2.70678028,2422.0,2421.9,4.08232838]
[1726386217795,2.70678028,2422.0,2421.9,3.60449011]
[1726386217994,2.70678028,2422.0,2421.9,4.0823286]
[1726386218196,2.70678028,2422.0,2421.9,3.60449011]
[1726386219388,2.70678028,2422.0,2421.9,4.08232904]
[1726386219595,2.70678028,2422.0,2421.9,3.60449011]
[1726386221584,2.70678028,2422.0,2421.9,2.39589704]
[1726386221982,2.70678028,2422.0,2421.9,3.11085401]
[1726386222300,2.70678028,2422.0,2421.9,3.60449219]
[1726386222800,2.70678028,2422.0,2421.9,3.6044923]
[1726386228707,2.70678028,2422.0,2421.9,2.64600977]
[1726386228895,2.70678028,2422.0,2421.9,3.88339805]
[1726386229104,2.70678028,2422.0,2421.9,3.13964726]
[1726386229603,2.70678028,2422.0,2421.9,3.60449118]
[1726386229901,2.70678028,2422.0,2421.9,4.08232654]
[1726386230504,2.70678028,2422.0,2421.9,3.60449118]
[1726386231008,7.27190427,2422.2,2421.9,3.19170118]
[1726386231210,2.70923527,2422.0,2421.9,1.48946898]
[1726386231508,2.70923527,2422.0,2421.9,3.66951541]
[1726386231708,2.70923527,2422.0,2421.9,4.08230541]
[1726386231903,2.70923527,2422.0,2421.9,4.08231179]
[1726386232114,2.70923527,2422.0,2421.9,4.87810765]
[1726386232316,2.70923527,2422.0,2421.9,4.38447674]
[1726386232503,2.70923527,2422.0,2421.9,4.41326699]
[1726386232702,2.70923527,2422.0,2421.9,6.03463829]
[1726386232906,2.70923527,2422.0,2421.9,5.29089314]
[1726386233404,7.27190427,2422.2,2421.9,4.8130571]
[1726386233603,2.70925037,2422.0,2421.9,3.11084484]
[1726386233807,2.70925037,2422.0,2421.9,3.57568597]
[1726386234111,2.70925037,2422.0,2421.9,4.08230775]
[1726386234315,7.27190427,2422.2,2421.9,5.29088708]
[1726386234506,7.27190427,2422.2,2422.0,0.49363001]
[1726386234808,7.27190427,2422.2,2422.1,0.95847037]
[1726386235006,9.96987974,2422.2,2422.1,0.95847037]
[1726386235205,9.96987974,2422.2,2422.1,0.49363001]
[1726386235413,9.96987974,2422.2,2421.9,1.61458586]
[1726386235610,1.19,2422.1,2421.9,1.61458586]
[1726386235809,1.19,2422.1,2422.0,0.49363949]
[1726386236307,1.19,2422.1,2422.0,0.95848631]
[1726386237210,4.3978,2422.1,2422.0,0.95848631]
[1726386238113,1.19,2422.1,2422.0,0.95848631]
[1726386239805,1.19,2422.1,2422.0,0.46484682]
[1726386240007,1.19,2422.1,2422.0,0.9584899]
[1726386240711,1.19,2422.1,2421.9,0.406]
[1726386240912,1.19,2422.1,2422.0,0.95850015]
[1726386241302,4.3978,2422.1,2422.0,0.95850015]
[1726386241507,1.19,2422.1,2422.0,0.95850015]
[1726386241709,4.3978,2422.1,2422.0,0.49364854]
[1726386241924,4.3978,2422.1,2422.0,0.98729704]
[1726386242207,4.3978,2422.1,2422.0,1.45214858]
[1726386242604,4.3978,2422.1,2422.0,1.91700008]
[1726386243108,1.19,2422.1,2422.0,1.91700008]
[1726386243413,4.3978,2422.1,2422.0,1.91700008]
[1726386244608,4.81056,2422.1,2422.0,1.91700008]
[1726386246115,4.81056,2422.1,2422.0,2.38185621]
[1726386246318,4.81056,2422.1,2422.0,1.91700471]
[1726386247716,4.3978,2422.1,2422.0,1.91700471]
[1726386249206,3.66328427,2422.3,2422.0,3.07350536]
[1726386249404,3.66328427,2422.3,2422.1,1.25055308]
[1726386249606,0.41273,2422.3,2422.2,0.95845395]
[1726386249912,0.41273,2422.3,2422.2,1.37125395]
[1726386250107,7.79128427,2422.3,2422.2,1.37125395]
[1726386250508,4.54073,2422.3,2422.2,1.37125395]
[1726386250710,7.79128427,2422.3,2422.2,1.37125395]
[1726386250906,4.54073,2422.3,2422.2,1.37125395]
[1726386251908,4.54073,2422.3,2422.2,1.371254]
[1726386252211,4.54073,2422.3,2422.2,1.37125298]
[1726386252416,4.54073,2422.3,2422.2,0.90642369]
[1726386252712,4.54073,2422.3,2422.2,1.37124961]
[1726386252908,0.41273,2422.3,2422.2,1.37124961]
[1726386253216,0.41273,2422.3,2422.2,0.87762592]
[1726386253406,0.41273,2422.3,2422.2,1.37123711]
[1726386253607,7.64835427,2422.4,2422.2,1.34245161]
[1726386253915,7.64835427,2422.4,2422.2,0.4128]
[1726386254218,4.3978,2422.4,2422.2,0.4128]
[1726386254718,4.81051,2422.4,2422.2,0.4128]
[1726386255409,3.2078,2422.4,2422.3,0.95832757]
[1726386255915,2.70783953,2422.4,2422.3,2.89181351]
[1726386256314,2.70783953,2422.4,2422.3,2.14832757]
[1726386256612,2.70783953,2422.5,2422.4,0.41271]
[1726386256811,2.70783953,2422.5,2422.4,0.4001]
[1726386257013,2.70783953,2422.5,2422.4,1.35820489]
[1726386257208,2.70783953,2422.5,2422.4,1.77091489]
[1726386258218,2.70783953,2422.5,2422.4,1.35820489]
[1726386258409,2.70783953,2422.5,2422.4,0.4001]
[1726386261415,2.70783953,2422.6,2422.4,0.4001]
[1726386261821,2.70783953,2422.6,2422.5,0.413]
[1726386262122,2.70450429,2422.6,2422.5,0.413]
[1726386270519,2.70450429,2422.6,2422.5,0.795]
[1726386275120,3.89450429,2422.7,2422.5,0.795]
[1726386276027,2.16207094,2422.7,2422.6,0.41267]
[1726386277727,5.36987094,2422.8,2422.6,0.41267]
[1726386278626,6.55987094,2422.8,2422.6,0.41267]
[1726386281626,1.62068372,2422.7,2422.6,0.41267]
[1726386283537,1.62063507,2422.7,2422.6,0.41267]
[1726386285530,1.62066736,2422.7,2422.6,0.41267]
[1726386285731,6.55987094,2422.8,2422.6,0.41267]
[1726386286139,1.62066823,2422.7,2422.6,0.41267]
[1726386287632,6.55987094,2422.8,2422.6,0.41267]
[1726386288037,1.62068847,2422.7,2422.6,0.41267]
[1726386288439,6.55987094,2422.8,2422.6,0.41267]
[1726386289841,1.62085575,2422.7,2422.6,0.41267]
[1726386290041,6.55987094,2422.8,2422.6,0.41267]
[1726386291445,2.16207094,2422.7,2422.6,0.41267]
[1726386291637,6.55987094,2422.8,2422.6,0.41267]
[1726386291838,2.16207094,2422.7,2422.6,0.41267]
[1726386292038,6.96157094,2422.8,2422.6,0.41267]
[1726386292239,2.16207094,2422.7,2422.6,0.41267]
[1726386294455,2.16207094,2422.7,2422.5,1.20768]
[1726386294635,1.62179467,2422.6,2422.5,1.20768]
[1726386294839,1.62179467,2422.6,2422.5,3.35556547]
[1726386296347,2.16207094,2422.7,2422.5,3.35556547]
[1726386296649,2.16207094,2422.7,2422.5,2.39768]
[1726386298244,2.16207094,2422.7,2422.5,1.20768]
[1726386298448,5.91230429,2422.8,2422.5,1.20768]
[1726386298449,2.16207094,2422.6,2422.5,1.20768]
[1726386298645,2.16207094,2422.7,2422.5,2.16557113]
[1726386298855,2.16207094,2422.7,2422.5,1.20768]
[1726386299442,2.16207094,2422.6,2422.5,1.20768]
[1726386299649,2.16207094,2422.6,2422.5,2.16556137]
[1726386300048,2.16207094,2422.6,2422.5,1.70099401]
[1726386300253,2.16207094,2422.6,2422.5,2.16557013]
[1726386301947,2.16207094,2422.7,2422.6,0.41267]
[1726386302245,2.16207094,2422.7,2422.6,1.37056013]
[1726386302646,2.16207094,2422.7,2422.6,0.87724612]
[1726386302858,2.16207094,2422.7,2422.6,0.90595998]
[1726386303043,2.16207094,2422.7,2422.6,1.37051391]
[1726386305350,2.16207094,2422.7,2422.6,0.41267]
[1726386305545,2.16207094,2422.7,2422.6,1.37074007]
[1726386306148,2.16207094,2422.7,2422.6,0.87733456]
[1726386306351,2.16207094,2422.7,2422.6,1.37074332]
[1726386306544,2.16207094,2422.7,2422.6,1.83541066]
[1726386306756,2.16207094,2422.7,2422.6,1.3420019]
[1726386307052,2.16207094,2422.7,2422.6,0.9060803]
[1726386307262,2.16207094,2422.7,2422.6,0.41267]
[1726386307552,2.16207094,2422.7,2422.6,0.87733872]
[1726386307855,2.16207094,2422.7,2422.6,1.83541418]
[1726386309454,2.16207094,2422.7,2422.6,2.30008137]
[1726386309757,2.16207094,2422.7,2422.6,1.34200592]
[1726386309957,2.16207094,2422.7,2422.6,2.32882172]
[1726386310148,2.16207094,2422.7,2422.6,3.28688173]
[1726386310449,2.16207094,2422.7,2422.6,1.37073001]
[1726386311654,2.16207094,2422.7,2422.6,2.56073001]
[1726386311845,3.2078,2422.8,2422.7,0.41265]
[1726386311846,2.16207094,2422.8,2422.7,0.41265]
[1726386312051,2.16420659,2422.8,2422.7,1.77491001]
[1726386313456,2.16420659,2422.8,2422.7,1.31024316]
[1726386313655,2.16420659,2422.8,2422.7,1.77484883]
[1726386314960,2.16420659,2422.8,2422.7,2.96484883]
[1726386315760,2.16420659,2422.8,2422.7,1.77484883]
[1726386316760,2.16420659,2422.8,2422.7,0.81685]
[1726386316958,2.16420659,2422.8,2422.7,1.31017483]
[1726386317264,2.16420659,2422.8,2422.7,1.28144752]
[1726386317461,2.16420659,2422.8,2422.7,1.77477279]
[1726386318356,2.16420659,2422.8,2422.7,2.2393703]
[1726386320364,2.16420659,2422.8,2422.7,1.74604503]
[1726386320667,2.16420659,2422.8,2422.7,1.31017451]
[1726386320866,2.16420659,2422.8,2422.7,2.51812606]
[1726386321361,2.70450429,2422.9,2422.7,2.51812606]
[1726386321362,2.70450429,2422.9,2422.7,2.51812245]
[1726386321567,2.70450429,2422.9,2422.8,0.95792126]
[1726386321970,2.70450429,2422.9,2422.8,1.35272126]
[1726386323971,2.70634166,2422.9,2422.8,1.35275781]
[1726386327572,2.70634166,2422.9,2422.8,1.35286972]
[1726386327965,2.70634166,2422.9,2422.8,0.85939675]
[1726386328172,2.70634166,2422.9,2422.8,1.35300832]
[1726386328978,2.70634166,2422.9,2422.8,1.35300822]
[1726386328979,3.10354166,2422.9,2422.8,1.35300822]
[1726386329676,3.10354166,2422.9,2422.8,1.76564822]
[1726386329875,2.70634166,2422.9,2422.8,2.95564822]
[1726386330079,2.70634166,2422.9,2422.8,3.36164822]
[1726386330466,2.70634166,2422.9,2422.8,2.94900822]
[1726386330971,2.70634166,2422.9,2422.8,1.9908]
[1726386331171,2.70634166,2422.9,2422.8,2.48427015]
[1726386331371,2.70634166,2422.9,2422.8,2.94900384]
[1726386332378,2.70634166,2422.9,2422.8,1.75900384]
[1726386332767,2.70578155,2422.9,2422.8,1.75900384]
[1726386337185,2.70578155,2422.9,2422.8,0.8008]
[1726386337380,2.70578155,2422.9,2422.8,1.29427079]
[1726386337585,2.70578155,2422.9,2422.8,1.75900522]
[1726386338183,2.70578155,2422.9,2422.8,1.26553443]
[1726386338481,2.70578155,2422.9,2422.8,1.29427079]
[1726386338675,2.70578155,2422.9,2422.8,1.75900522]
[1726386339186,3.2078,2423.0,2422.8,14.75008429]
[1726386339187,1.62361886,2423.0,2422.8,14.75008429]
[1726386339376,1.62361886,2423.0,2422.9,1.96273139]
[1726386339574,1.62361886,2423.0,2422.9,6.21139486]
[1726386339877,2.16489656,2423.1,2422.9,6.21139486]
[1726386340077,2.16489656,2423.1,2423.0,2.78340276]
[1726386340476,2.16489656,2423.1,2423.0,3.19360276]
[1726386340676,2.16489656,2423.1,2423.0,3.58480276]
[1726386340882,2.53989656,2423.2,2423.0,4.0623521]
[1726386341083,2.53989656,2423.2,2423.1,0.95789641]
[1726386341284,2.53882801,2423.2,2423.1,0.95789641]
[1726386341692,2.53882801,2423.2,2423.1,1.34879641]
[1726386341880,2.16382801,2423.2,2423.1,2.53879641]
[1726386347900,2.16382801,2423.2,2423.1,2.07420152]
[1726386348293,2.16382801,2423.2,2423.1,2.04549604]
[1726386348488,2.16382801,2423.2,2423.1,3.00339351]
[1726386349085,2.16382801,2423.2,2423.1,2.04549604]
[1726386349296,2.16382801,2423.2,2423.1,2.53879574]
[1726386349705,2.16382801,2423.2,2423.1,2.04549604]
[1726386350191,2.16382801,2423.2,2423.1,2.53879444]
[1726386350396,2.16382801,2423.2,2423.1,2.5387918]
[1726386350696,2.16382801,2423.2,2423.1,2.07419576]
[1726386350918,2.16382801,2423.2,2423.1,1.5809]
[1726386351494,5.37162801,2423.3,2423.1,1.5809]
[1726386351799,2.16382801,2423.2,2423.1,1.5809]
[1726386352394,5.37162801,2423.3,2423.1,1.5809]
[1726386352789,2.16382801,2423.2,2423.1,1.5809]
[1726386352994,5.37162801,2423.3,2423.1,1.5809]
[1726386353196,2.16382801,2423.3,2423.1,1.5809]
[1726386353500,5.37162801,2423.3,2423.1,1.5809]
[1726386353687,2.16382801,2423.2,2423.1,1.5809]
[1726386354402,2.16382801,2423.2,2423.1,1.19]
[1726386363501,2.57532801,2423.2,2423.1,1.19]
[1726386364408,2.57532801,2423.2,2423.0,2.404]
[1726386364611,1.6216755,2423.1,2423.0,2.404]
[1726386364810,1.6216755,2423.1,2423.0,3.36193995]
[1726386365510,1.6216755,2423.1,2423.0,2.404]
[1726386365711,1.6216755,2423.1,2423.0,3.36197113]
[1726386365908,1.6216755,2423.1,2423.0,3.36197221]
[1726386366109,1.6216755,2423.1,2423.0,3.36197284]
[1726386366500,1.6216755,2423.1,2423.0,3.36196788]
[1726386367207,1.6216755,2423.1,2423.0,2.86862506]
[1726386367414,1.6216755,2423.1,2423.0,3.8265849]
[1726386367803,1.6216755,2423.1,2423.0,3.3619589]
[1726386368011,1.6216755,2423.1,2423.0,2.86862506]
[1726386368212,1.6216755,2423.1,2423.0,3.33324981]
[1726386368616,1.6216755,2423.1,2423.0,3.82658399]
[1726386369311,1.62185461,2423.1,2423.0,3.82658399]
[1726386369511,5.78312801,2423.2,2423.0,4.29120955]
[1726386369710,5.78312801,2423.2,2423.0,3.33324981]
[1726386369916,1.62189257,2423.1,2423.0,3.33324981]
[1726386370215,1.62189257,2423.1,2423.0,4.29123726]
[1726386370605,5.78312801,2423.2,2423.0,4.29123726]
[1726386370802,5.78312801,2423.2,2423.0,2.404]
[1726386371001,2.57532801,2423.2,2423.0,2.404]
[1726386371206,5.78312801,2423.2,2423.0,2.404]
[1726386371615,2.57532801,2423.2,2423.0,2.404]
[1726386371917,5.78312801,2423.2,2423.0,2.404]
[1726386372717,2.57532801,2423.2,2423.0,2.404]
[1726386373107,5.78312801,2423.2,2423.0,2.404]
[1726386375406,3.6193,2423.2,2423.1,0.49327567]
[1726386375608,5.37106379,2423.2,2423.1,0.49327978]
[1726386375915,5.37106379,2423.2,2423.1,2.56042198]
[1726386376110,5.37106379,2423.2,2423.1,2.14783198]
[1726386378223,2.16326379,2423.2,2423.1,2.14774923]
[1726386378808,2.16326379,2423.2,2423.1,1.19]
[1726386379016,2.16326379,2423.2,2423.1,1.68322631]
[1726386379221,2.16326379,2423.2,2423.1,2.14775268]
[1726386379524,5.91358155,2423.3,2423.1,2.14776675]
[1726386379720,5.91358155,2423.3,2423.1,1.65452637]